fUSD/lending_fUSD_20251201
["ID","MTS","AMOUNT","RATE_DAILY","PERIOD"]
[395325565,1764628243284,-500.0,0.00013699,2]
[395325566,1764628243294,-500.0,0.00013699,2]
[395325567,1764628243303,-323.34742872,0.00013699,2]
[395325576,1764628246462,-176.65257128,0.00013699,2]
[395325577,1764628246471,-199.56064264,0.00013699,2]
[395325578,1764628246481,-122.53585931,0.00013699,2]
[395325579,1764628246492,-230.99752896,0.00013699,2]
[395325580,1764628246501,-169.00247104,0.00013699,2]
[395325581,1764628246513,-330.99752896,0.00013699,2]
[395325582,1764628246523,-67.59251142,0.00013699,2]
[395325584,1764628246535,-318.33258987,0.00013699,2]
[395325586,1764628246544,-88.38248413,0.00013699,2]
[395325588,1764628246555,-267.81012156,0.00013699,2]
[395325589,1764628246567,-143.80739431,0.00013699,2]
[395325590,1764628246576,-856.19260569,0.000137,2]
[395325591,1764628246588,-1886.75728299,0.000137,2]
[395325592,1764628246598,-2500.0,0.000137,2]
[395325593,1764628246607,-481.94,0.00013798,2]
[395325594,1764628246617,-500.0,0.00013798,2]
[395325595,1764628246626,-424.63371723,0.00013798,2]
[395325596,1764628246636,-500.0,0.00013799,2]
[395325597,1764628246645,-500.0,0.00013799,2]
[395325598,1764628246655,-500.0,0.00013799,2]
[395325599,1764628246664,-580.20708601,0.00013799,2]
[395325600,1764628246673,-1000.0,0.000138,2]
[395325601,1764628246683,-1907.32913715,0.00013878,2]
[395325602,1764628246694,-1535.2159179,0.00013878,2]
[395325610,1764629295505,2706.23257548,0.0001201,2]
[395325621,1764629432153,-162.9910991,0.00013569,2]
[395325622,1764629432162,-250.0,0.00013594,2]
[395325623,1764629432172,-430.87,0.00013619,2]
[395325624,1764629432181,-2448.23,0.00013646,2]
[395325625,1764629432191,-475.71,0.00013699,2]
[395325626,1764629432200,-819.1979249,0.00013739,2]
[395325627,1764629432210,-163.1418525,0.00013739,2]
[395325628,1764629432219,-691.79,0.00013771,2]
[395325629,1764629432229,-150.89016,0.00013878,2]
[395325630,1764629432238,-1200.0,0.00013889,2]
[395325631,1764629432248,-2133.31,0.0001389,2]
[395325632,1764629432257,-300.0,0.00013896,2]
[395325633,1764629432267,-768.47,0.00013898,2]
[395325634,1764629432276,-1430.47,0.00013899,2]
[395325635,1764629432285,-1430.47,0.00013899,2]
[395325636,1764629432295,-5025.51,0.00014012,2]
[395325637,1764629432304,-200.0,0.00014399,2]
[395325638,1764629432313,-66845.9359,0.00014433,2]
[395325639,1764629432323,-932.591133,0.00014525,2]
[395325640,1764629432332,-150.0,0.00014527,2]
[395325641,1764629432341,-385.55,0.00014527,2]
[395325642,1764629432350,-500.0,0.00014527,2]
[395325643,1764629432360,-500.0,0.00014527,2]
[395325644,1764629432369,-500.0,0.00014527,2]
[395325645,1764629432382,-500.0,0.00014527,2]
[395325646,1764629432392,-500.0,0.00014527,2]
[395325647,1764629432401,-500.0,0.00014527,2]
[395325648,1764629432410,-500.0,0.00014527,2]
[395325649,1764629432419,-500.0,0.00014527,2]
[395325650,1764629432429,-179.4795883,0.00014527,2]
[395325651,1764629432438,-536.53829949,0.00014527,2]
[395325652,1764629432447,-351.18360158,0.00014527,2]
[395325653,1764629432457,-500.0,0.00014527,2]
[395325654,1764629432466,-339.99654705,0.00014527,2]
[395325655,1764629432475,-500.0,0.00014527,2]
[395325656,1764629432484,-500.0,0.00014527,2]
[395325657,1764629432494,-500.0,0.00014527,2]
[395325658,1764629432503,-500.0,0.00014527,2]
[395325659,1764629432512,-500.0,0.00014527,2]
[395325660,1764629432522,-500.0,0.00014527,2]
[395325661,1764629432538,-500.0,0.00014527,2]
[395325662,1764629432547,-500.0,0.00014527,2]
[395325663,1764629432557,-310.74321811,0.00014527,2]
[395325664,1764629432568,-500.0,0.00014527,2]
[395325665,1764629432578,-500.0,0.00014527,2]
[395325666,1764629432587,-500.0,0.00014527,2]
[395325667,1764629432596,-500.0,0.00014527,2]
[395325668,1764629432606,-500.0,0.00014527,2]
[395325669,1764629432616,-500.0,0.00014527,2]
[395325670,1764629432625,-500.0,0.00014527,2]
[395325671,1764629432634,-500.0,0.00014527,2]
[395325672,1764629432645,-500.0,0.00014527,2]
[395325673,1764629432655,-500.0,0.00014527,2]
[395325674,1764629432664,-500.0,0.00014527,2]
[395325675,1764629432673,-500.0,0.00014527,2]
[395325676,1764629432683,-500.0,0.00014527,2]
[395325677,1764629432692,-500.0,0.00014527,2]
[395325678,1764629432701,-450.46321768,0.00014527,2]
[395325679,1764629432713,-49.53678232,0.00014527,2]
[395325680,1764629432722,-254.75236299,0.00014527,2]
[395325681,1764629432733,-245.24763701,0.00014527,2]
[395325682,1764629432744,-500.0,0.00014527,2]
[395325683,1764629432753,-534.52702423,0.00014527,2]
[395325684,1764629432763,-500.0,0.00014527,2]
[395325685,1764629432772,-500.0,0.00014527,2]
[395325686,1764629432781,-1289.196,0.0001453,2]
[395325687,1764629432791,-166.696,0.0001453,2]
[395325688,1764629432800,-1459.51691308,0.0001453,2]
[395325689,1764629432817,-419.45100002,0.0001453,2]
[395325690,1764629432828,-589.68698673,0.0001453,2]
[395325691,1764629432838,-660.69171341,0.0001453,2]
[395325692,1764629432873,-302.42359992,0.0001453,2]
[395325693,1764629432884,-717.044553,0.0001453,2]
[395325698,1764629438294,-1785.09504361,0.0001453,2]
[395325699,1764629438493,-1291.59084886,0.0001453,2]
[395325703,1764629440347,-6981.8708681,0.0001453,2]
[395325704,1764629440356,-162.9910991,0.0001453,2]
[395325705,1764629440366,-151.0,0.0001453,2]
[395325706,1764629440792,-647.24360206,0.00014532,2]
[395325707,1764629440802,-282.66502291,0.00014532,2]
[395325708,1764629440812,-292.78050892,0.00014533,2]
[395325709,1764629440822,-500.0,0.00014533,2]
[395325710,1764629440832,-500.0,0.00014533,2]
[395325711,1764629440842,-411.9192268,0.00014533,2]
[395325712,1764629440852,-551.31714779,0.00014533,2]
[395325713,1764629440862,-760000.0,0.00014533,2]
[395325714,1764629440872,-200.0,0.00014631,2]
[395325715,1764629440882,-2468.65489981,0.00014793,2]
[395325716,1764629440892,-11738.7166269,0.00014793,2]
[395325717,1764629440901,-385.55,0.00014801,2]
[395325718,1764629440911,-1000.0,0.00014871,2]
[395325719,1764629440920,-250.0,0.00014926,2]
[395325720,1764629440929,-195.0,0.00014926,2]
[395325721,1764629440939,-151.0,0.00014968,2]
[395325722,1764629440948,-500.0,0.0001497,2]
[395325723,1764629440957,-191563.97128244,0.00014971,2]
[395325724,1764629440967,-300.0,0.00015003,2]
[395325725,1764629440977,-300.0,0.00015003,2]
[395325726,1764629440986,-195.0,0.00015003,2]
[395325727,1764629440996,-300.0,0.00015011,2]
[395325728,1764629441006,-300.0,0.00015011,2]
[395325729,1764629441015,-300.0,0.00015011,2]
[395325730,1764629441025,-195.0,0.00015011,2]
[395325731,1764629441035,-150.0,0.00015043,2]
[395325732,1764629441045,-2468.65489981,0.00015057,2]
[395325733,1764629441055,-11738.7166269,0.00015057,2]
[395325734,1764629441065,-385.55,0.00015075,2]
[395325735,1764629441075,-866.0,0.00015278,2]
[395325736,1764629441085,-1430.47,0.00015286,2]
[395325737,1764629441095,-150.00000001,0.00015288,2]
[395325738,1764629441104,-150.0,0.00015288,2]
[395325739,1764629441114,-2468.65489981,0.0001532,2]
[395325740,1764629441123,-11738.7166269,0.0001532,2]
[395325741,1764629441132,-385.55,0.00015349,2]
[395325742,1764629441142,-819.1979249,0.00015457,2]
[395325743,1764629441151,-691.79,0.00015493,2]
[395325744,1764629441161,-2468.65489981,0.00015583,2]
[395325745,1764629441170,-11738.7166269,0.00015583,2]
[395325746,1764629441180,-385.59,0.00015623,2]
[395325747,1764629441190,-255.0,0.00015646,2]
[395325748,1764629441199,-2468.65489981,0.00015847,2]
[395325749,1764629441207,-11738.7166269,0.00015847,2]
[395325750,1764629441216,-150.89016,0.00015878,2]
[395325751,1764629441225,-336.54278996,0.000159,2]
[395325752,1764629441234,-336.54278996,0.000159,2]
[395325753,1764629441243,-336.54278996,0.000159,2]
[395325754,1764629441253,-336.54278996,0.000159,2]
[395325755,1764629441263,-336.54278996,0.000159,2]
[395325756,1764629441273,-1205.67829212,0.0001599,2]
[395325757,1764629441282,-67836.31737968,0.00016,4]
[395325758,1764629441292,-2468.65489981,0.0001611,2]
[395325759,1764629441301,-11738.7166269,0.0001611,2]
[395325760,1764629441311,-299.99,0.00016116,4]
[395325761,1764629441320,-9999.99,0.00016116,2]
[395325762,1764629441329,-150.99,0.00016116,2]
[395325763,1764629441339,-4218.37,0.00016116,2]
[395325764,1764629441349,-167.77,0.00016319,2]
[395325765,1764629441358,-2468.65489981,0.00016373,2]
[395325766,1764629441368,-11738.7166269,0.00016373,2]
[395325767,1764629441378,-500.0,0.00016438,2]
[395325768,1764629441387,-500.0,0.00016438,2]
[395325769,1764629441397,-500.0,0.00016438,2]
[395325770,1764629441406,-500.0,0.00016438,2]
[395325771,1764629441416,-500.0,0.00016438,2]
[395325772,1764629441425,-500.0,0.00016438,2]
[395325773,1764629441435,-378.98526756,0.00016438,2]
[395325774,1764629441444,-500.0,0.00016438,2]
[395325775,1764629441453,-410.86740803,0.00016438,2]
[395325776,1764629441463,-500.0,0.00016438,2]
[395325777,1764629441472,-500.0,0.00016438,2]
[395325778,1764629441482,-500.0,0.00016438,2]
[395325779,1764629441491,-500.0,0.00016438,2]
[395325780,1764629441500,-500.0,0.00016438,2]
[395325781,1764629441510,-5863.37,0.00016438,2]
[395325782,1764629441519,-163.86,0.0001644,2]
[395325783,1764629441528,-357.76401239,0.000166,2]
[395325784,1764629441537,-2468.65489981,0.00016637,2]
[395325785,1764629441547,-11738.7166269,0.00016637,2]
[395325786,1764629441556,-6226.67338072,0.00016643,2]
[395325787,1764629441568,-176.07,0.00016712,2]
[395325788,1764629441579,-396.0,0.00016851,2]
[395325789,1764629441588,-2468.65489981,0.000169,2]
[395325790,1764629441597,-530.76490035,0.000169,2]
[395325791,1764629441606,-11738.7166269,0.000169,2]
[395325792,1764629441616,-1212.27482434,0.000169,2]
[395325793,1764629441626,-1152.84127795,0.000169,2]
[395325794,1764629441635,-500.0,0.000169,2]
[395325795,1764629441644,-500.0,0.000169,2]
[395325796,1764629441654,-500.0,0.000169,2]
[395325797,1764629441663,-500.0,0.000169,2]
[395325798,1764629441672,-500.0,0.000169,2]
[395325799,1764629441682,-500.0,0.000169,2]
[395325800,1764629441691,-500.0,0.000169,2]
[395325801,1764629441700,-500.0,0.00016973,2]
[395325802,1764629441709,-500.0,0.00016973,2]
[395325803,1764629441719,-500.0,0.00016973,2]
[395325804,1764629441728,-500.0,0.00016973,2]
[395325805,1764629441738,-500.0,0.00016973,2]
[395325806,1764629441747,-500.0,0.00016973,2]
[395325807,1764629441757,-500.0,0.00016973,2]
[395325808,1764629441766,-500.0,0.00016973,2]
[395325809,1764629441775,-233.06885898,0.00016973,2]
[395325810,1764629441785,-500.0,0.00016973,2]
[395325811,1764629441794,-500.0,0.00016973,2]
[395325812,1764629441803,-162.47379321,0.00016973,2]
[395325813,1764629441812,-500.0,0.00016973,2]
[395325814,1764629441821,-500.0,0.00016973,2]
[395325815,1764629441831,-500.0,0.00016973,2]
[395325816,1764629441840,-201.14127779,0.00016973,2]
[395325817,1764629441849,-500.0,0.00016973,2]
[395325818,1764629441859,-15940.0,0.00016986,2]
[395325819,1764629441868,-1716.0,0.00016986,2]
[395325820,1764629441877,-1205.67829212,0.0001699,2]
[395325821,1764629441887,-1205.67829212,0.0001699,2]
[395325822,1764629441896,-151.0,0.00016997,2]
[395325823,1764629441906,-300.0,0.00016999,2]
[395325824,1764629441916,-300.0,0.00016999,2]
[395325825,1764629441925,-250.0,0.00017,2]
[395325826,1764629441935,-4689186.1837359,0.00017,2]
[395325832,1764629443860,-3657.76916,0.00017,2]
[395325833,1764629443873,-479.14855895,0.00017,2]
[395325834,1764629443884,-7441.55697685,0.00017,2]
[395325835,1764629443895,-1717.6318278,0.00017,2]
[395325836,1764629443906,-2813.06777522,0.00017,2]
[395325837,1764629443917,-1704.0,0.00017,2]
[395325838,1764629443973,-17402.3280393,0.00017,2]
[395325839,1764629444009,-488.750531,0.00017,2]
[395325840,1764629444020,-2570.75,0.00017,2]
[395325842,1764629446234,-500.0,0.00014432,2]
[395325843,1764629446244,-500.0,0.00014432,2]
[395325844,1764629446255,-500.0,0.00016438,2]
[395325845,1764629446265,-254.42807507,0.00016438,2]
[395325846,1764629446274,-182.42815085,0.000169,2]
[395325847,1764629446284,-21433.06459505,0.00017,2]
[395325848,1764629446295,-6003.8619263,0.00017,2]
[395325849,1764629446308,-467.55006756,0.00017,2]
[395325850,1764629446324,-1670.6615604,0.00017,2]
[395325851,1764629446452,-589.84531789,0.00017,2]
[395325852,1764629446463,-588.94,0.00017,2]
[395325853,1764629446476,-900.862616,0.00017,2]
[395325854,1764629604956,155.75,8.1e-05,2]
[395325855,1764629605157,155.75,9.113e-05,2]
[395325856,1764629605362,155.75,0.00010126,2]
[395325857,1764629605936,155.75,0.00011138,2]
[395325859,1764629847683,-155.75,0.00012151,2]
[395325861,1764629980447,160.0,0.00022,30]
[395325862,1764630100623,-155.75,0.00013163,2]
[395325863,1764630100646,-19.12398947,0.00013366,2]
[395325866,1764630311941,-195.0,0.00013741,2]
[395325867,1764630311969,-186.84837164,0.00013774,2]
[395325868,1764630311999,-154.83,0.00013818,2]
[395325869,1764630312028,-166.66,0.00013841,2]
[395325870,1764630312057,-300.0,0.00013998,2]
[395325871,1764630312087,-300.0,0.00013998,2]
[395325872,1764630312117,-1200.0,0.00013999,2]
[395325873,1764630312145,-150.0,0.00013999,2]
[395325874,1764630312175,-300.0,0.00013999,2]
[395325875,1764630312205,-500.0,0.00013999,2]
[395325876,1764630312236,-288.45882332,0.00013999,2]
[395325877,1764630312265,-430.9313827,0.00013999,2]
[395325878,1764630312295,-183.64728976,0.00013999,2]
[395325879,1764630312329,-500.0,0.00013999,2]
[395325880,1764630312359,-121.56307835,0.00013999,2]
[395325881,1764630315121,-44.13210846,0.00013999,2]
[395325882,1764630315157,-500.0,0.00013999,2]
[395325883,1764630315187,-500.0,0.00013999,2]
[395325884,1764630315223,-500.0,0.00013999,2]
[395325885,1764630315257,-438.99139638,0.00013999,2]
[395325886,1764630315287,-274.23847628,0.00013999,2]
[395325887,1764630315322,-500.0,0.00013999,2]
[395325888,1764630315355,-500.0,0.00013999,2]
[395325889,1764630315391,-500.0,0.00013999,2]
[395325890,1764630315426,-500.0,0.00013999,2]
[395325891,1764630315460,-500.0,0.00013999,2]
[395325892,1764630315509,-500.0,0.00013999,2]
[395325893,1764630315542,-500.0,0.00013999,2]
[395325894,1764630315575,-500.0,0.00013999,2]
[395325895,1764630315609,-500.0,0.00013999,2]
[395325896,1764630317227,-5310.47557074,0.00014,2]
[395325897,1764630317241,-10000.01,0.00014,2]
[395325898,1764630317258,-10000.01,0.00014,2]
[395325899,1764630324068,-10000.01,0.00014,2]
[395325901,1764630430606,-331.51319751,0.00013985,3]
[395325903,1764630433352,-304.68428329,0.00013985,3]
[395325904,1764630438057,-166.66,0.00013985,3]
[395325905,1764630439136,-175.26368266,0.00013985,3]
[395325906,1764630440630,-20.87883654,0.00013985,3]
[395325907,1764630440652,-230.45999844,0.00013999,2]
[395325908,1764630446304,-534.47777655,0.00013999,2]
[395325910,1764630450074,-235.06222501,0.00013999,2]
[395325911,1764630450095,-300.0,0.00013999,2]
[395325912,1764630450123,-13.86032913,0.00013999,2]
[395325913,1764630452338,-195.0,0.00013999,2]
[395325916,1764630454966,-247.13285064,0.00013999,2]
[395325917,1764630462183,-44.00682023,0.00013999,2]
[395325918,1764630462210,-500.0,0.00013999,2]
[395325919,1764630462236,-17.94834483,0.00013999,2]
[395325920,1764630468797,-300.0,0.00013999,2]
[395325921,1764630471053,-90.96233356,0.00013999,2]
[395325922,1764630471078,-100.26104974,0.00013999,2]
[395325923,1764630477252,-399.73895026,0.00013999,2]
[395325924,1764630477278,-100.26104974,0.00013999,2]
[395325925,1764630478890,-220.77771,0.00013999,2]
[395325926,1764630481520,-178.96124026,0.00013999,2]
[395325927,1764630481544,-100.26104974,0.00013999,2]
[395325928,1764630483096,-207.13942461,0.00013999,2]
[395325929,1764630487071,-192.59952565,0.00013999,2]
[395325930,1764630487095,-10.24973718,0.00013999,2]
[395325931,1764630488971,-428.40868744,0.00013999,2]
[395325932,1764630493174,-61.34157538,0.00013999,2]
[395325933,1764630493201,-122.42657773,0.00013999,2]
[395325934,1764630495690,-555.33933309,0.000139,2]
[395325935,1764630501205,-167.77779564,0.000139,2]
[395325936,1764630503140,-216.88040401,0.000139,2]
[395325937,1764630511779,-201.92117632,0.00013899,2]
[395325938,1764630511808,-166.48504386,0.000139,2]
[395325939,1764630517349,-438.7022947,0.00013899,2]
[395325940,1764630520537,-61.2977053,0.00013899,2]
[395325941,1764630520559,-175.26368266,0.00013899,2]
[395325942,1764630520585,-105.33009716,0.00013899,2]
[395325943,1764630527790,-250.71056848,0.00013899,2]
[395325944,1764630534956,-143.95933436,0.00013899,2]
[395325945,1764630534982,-9.77505884,0.00013899,2]
[395325946,1764630537180,-168.55735313,0.00013899,2]
[395325947,1764630540526,-279.76431984,0.00013899,2]
[395325948,1764630542932,-41.90326819,0.00013899,2]
[395325949,1764630542960,-227.92227849,0.00013899,2]
[395325950,1764630549193,-228.19920063,0.00013899,2]
[395325955,1764630552472,-43.87852088,0.00013899,2]
[395325956,1764630552497,-128.21397722,0.00013899,2]
[395325958,1764630558248,-159.98626008,0.00013899,2]
[395325960,1764630586496,-211.7997627,0.00013899,2]
[395325961,1764630586522,-38.2002373,0.00013899,2]
[395325962,1764630589044,-249.98626008,0.00013899,2]
[395325963,1764630590963,-172.85401695,0.00013899,2]
[395325964,1764630597401,-22.24372047,0.00013899,2]
[395325965,1764630597432,-172.75627953,0.00013899,2]
[395325966,1764630597926,-327.24372047,0.00013899,2]
[395325967,1764630597962,-500.0,0.00013899,2]
[395325968,1764630597995,-500.0,0.00013899,2]
[395325969,1764630598025,-500.0,0.00013899,2]
[395325970,1764630598057,-251.10592715,0.00013899,2]
[395325971,1764630598086,-150.0,0.00013899,2]
[395325972,1764630601264,409.972521,0.00013829,2]
[395325973,1764630601294,-202.30130885,0.000139,2]
[395325974,1764630601542,300.0,0.00013899,2]
[395325975,1764630601588,300.0,0.00013899,2]
[395325976,1764630601644,1200.0,0.00013899,2]
[395325977,1764630604888,-250.0,0.000139,2]
[395325978,1764630608937,-348.46889506,0.000139,2]
[395325979,1764630614286,151.0,0.00013897,2]
[395325980,1764630615056,-163.18803185,0.000139,2]
[395325981,1764630626911,-175.65664235,0.000139,2]
[395326005,1764630632936,-357.27559827,0.000139,2]
[395326006,1764630633056,-4790.94264816,0.000139,2]
[395326007,1764630633095,-600.0,0.000139,2]
[395326008,1764630633107,-79776.6969282,0.000139,2]
[395326009,1764630633126,-11878.21750107,0.000139,2]
[395326010,1764630634623,332.386939,0.0001383,2]
[395326011,1764630638196,-158.98036794,0.000139,2]
[395326017,1764630640282,-151.82709696,0.000139,2]
[395326018,1764630640431,-653.68413682,0.000139,2]
[395326019,1764630640503,-659386.27826787,0.000139,2]
[395326020,1764630640512,-201.0,0.000139,2]
[395326021,1764630640522,-92189.49442926,0.00014,2]
[395326022,1764630640531,-178.50051504,0.00014033,2]
[395326023,1764630640541,-195.0,0.00014066,2]
[395326024,1764630640550,-166.66,0.00014132,2]
[395326025,1764630640559,-155.75,0.00014176,2]
[395326026,1764630640568,-651.54996844,0.00014333,2]
[395326027,1764630640577,-9732.0413,0.00014333,2]
[395326028,1764630640587,-1807.7042,0.00014333,2]
[395326029,1764630640596,-151.0,0.00014422,2]
[395326030,1764630640606,-166.66,0.00014424,2]
[395326031,1764630640615,-151.0,0.00014425,2]
[395326032,1764630640624,-151.0,0.00014425,2]
[395326033,1764630640633,-151.0,0.00014425,2]
[395326034,1764630640642,-151.0,0.00014425,2]
[395326035,1764630640652,-200.0,0.00014425,2]
[395326036,1764630640661,-151.0,0.00014425,2]
[395326037,1764630640670,-151.0,0.00014425,2]
[395326038,1764630640679,-200.0,0.00014425,2]
[395326039,1764630640688,-151.0,0.00014425,2]
[395326040,1764630640698,-173.21142824,0.00014425,2]
[395326041,1764630640707,-151.0,0.00014425,2]
[395326042,1764630640716,-151.0,0.00014425,2]
[395326043,1764630640726,-151.0,0.00014425,2]
[395326044,1764630640735,-151.0,0.00014425,2]
[395326045,1764630640744,-151.0,0.00014425,2]
[395326046,1764630640753,-151.0,0.00014425,2]
[395326047,1764630640762,-151.0,0.00014425,2]
[395326048,1764630640771,-200.0,0.00014425,2]
[395326049,1764630640781,-151.0,0.00014425,2]
[395326050,1764630640791,-151.0,0.00014425,2]
[395326051,1764630640800,-151.0,0.00014425,2]
[395326052,1764630640809,-151.0,0.00014425,2]
[395326053,1764630640818,-151.0,0.00014425,2]
[395326054,1764630640828,-202.21665284,0.00014425,2]
[395326055,1764630640837,-500.0,0.00014425,2]
[395326056,1764630640846,-500.0,0.00014425,2]
[395326057,1764630640855,-500.0,0.00014425,2]
[395326058,1764630640864,-500.0,0.00014425,2]
[395326059,1764630640874,-500.0,0.00014425,2]
[395326060,1764630640883,-500.0,0.00014425,2]
[395326061,1764630640892,-500.0,0.00014425,2]
[395326062,1764630640901,-500.0,0.00014425,2]
[395326063,1764630640910,-500.0,0.00014425,2]
[395326064,1764630640919,-500.0,0.00014425,2]
[395326065,1764630640929,-500.0,0.00014425,2]
[395326066,1764630640938,-500.0,0.00014425,2]
[395326067,1764630640947,-500.0,0.00014425,2]
[395326068,1764630640956,-500.0,0.00014425,2]
[395326069,1764630640969,-500.0,0.00014425,2]
[395326070,1764630640978,-288.8,0.00014425,2]
[395326071,1764630640987,-2124.8703847,0.00014433,2]
[395326072,1764630640996,-456.26803018,0.00014433,2]
[395326073,1764630641006,-500.0,0.00014433,2]
[395326074,1764630641015,-1926.335,0.00014433,2]
[395326075,1764630641025,-186.741,0.00014433,2]
[395326076,1764630641034,-4494.56,0.00014433,2]
[395326077,1764630641044,-4494.56,0.00014433,2]
[395326078,1764630641054,-4494.56,0.00014433,2]
[395326079,1764630641064,-4494.56,0.00014433,2]
[395326080,1764630641073,-4494.56,0.00014433,2]
[395326081,1764630641084,-4494.56,0.00014433,2]
[395326082,1764630641097,-4494.56,0.00014433,2]
[395326083,1764630641107,-4494.56,0.00014433,2]
[395326084,1764630641116,-4494.56,0.00014433,2]
[395326085,1764630641126,-4494.56,0.00014433,2]
[395326086,1764630641136,-4494.56,0.00014433,2]
[395326087,1764630641146,-4494.56,0.00014433,2]
[395326088,1764630641155,-4494.56,0.00014433,2]
[395326089,1764630641165,-4494.56,0.00014433,2]
[395326090,1764630641175,-4494.56,0.00014433,2]
[395326091,1764630641185,-4494.56,0.00014433,2]
[395326092,1764630641194,-4494.56,0.00014433,2]
[395326093,1764630641203,-4494.56,0.00014433,2]
[395326094,1764630641213,-4494.56,0.00014433,2]
[395326095,1764630641222,-4494.56,0.00014433,2]
[395326096,1764630641232,-4494.56,0.00014433,2]
[395326097,1764630641241,-4494.56,0.00014433,2]
[395326098,1764630641251,-4494.56,0.00014433,2]
[395326099,1764630641260,-4494.69350937,0.00014433,2]
[395326100,1764630641269,-300.0,0.00014433,2]
[395326101,1764630641279,-1000.0,0.00014433,2]
[395326102,1764630641288,-151.0,0.00014521,2]
[395326103,1764630641298,-567.14160979,0.00014533,2]
[395326104,1764630641307,-500.0,0.00014533,2]
[395326105,1764630641316,-517.36111586,0.00014533,2]
[395326106,1764630641325,-154.83,0.00014682,2]
[395326107,1764630641334,-288.8,0.00014699,2]
[395326108,1764630641343,-166.66,0.00014715,2]
[395326109,1764630641352,-200.0,0.00014973,2]
[395326110,1764630641362,-200.0,0.00014973,2]
[395326111,1764630641371,-500.0,0.00014973,2]
[395326112,1764630641380,-288.8,0.00014973,2]
[395326113,1764630641389,-166.66,0.00015007,2]
[395326114,1764630641399,-255.0,0.00015025,2]
[395326115,1764630641408,-151.0,0.00015069,2]
[395326116,1764630641417,-410.0,0.00015124,2]
[395326117,1764630641426,-8530.12,0.00015135,2]
[395326118,1764630641435,-155.75,0.00015188,2]
[395326119,1764630641444,-420.0,0.00015229,2]
[395326120,1764630641454,-259.0,0.00015229,2]
[395326121,1764630641463,-1680.0,0.00015289,2]
[395326122,1764630641472,-300.0,0.0001529,2]
[395326123,1764630641482,-230.87601053,0.0001529,2]
[395326124,1764630641491,-166.66,0.00015298,2]
[395326125,1764630641500,-195.0,0.00015399,2]
[395326126,1764630641508,-195.0,0.000154,2]
[395326127,1764630641518,-200.0,0.00015521,2]
[395326128,1764630641527,-200.0,0.00015521,2]
[395326129,1764630641536,-500.0,0.00015521,2]
[395326130,1764630641545,-154.83,0.00015546,2]
[395326131,1764630641554,-500.0,0.00015667,2]
[395326132,1764630641564,-200.0,0.00016069,2]
[395326133,1764630641573,-500.0,0.00016069,2]
[395326134,1764630641582,-155.75,0.00016201,2]
[395326135,1764630641591,-433.0,0.00016248,2]
[395326136,1764630641600,-154.83,0.00016409,2]
[395326137,1764630641610,-4788.0,0.00016428,2]
[395326138,1764630641619,-150.0,0.00016428,2]
[395326139,1764630641628,-150.0,0.00016428,2]
[395326140,1764630641638,-500.0,0.00016428,2]
[395326141,1764630641647,-1000.0,0.00016438,2]
[395326142,1764630641656,-1000.0,0.00016438,2]
[395326143,1764630641666,-1000.0,0.00016438,2]
[395326144,1764630641675,-1000.0,0.00016438,2]
[395326145,1764630641685,-1000.0,0.00016438,2]
[395326146,1764630641695,-997.84244113,0.00016438,2]
[395326147,1764630641704,-250.0,0.00016477,2]
[395326148,1764630641713,-4788.0,0.00016565,2]